bitfinex-derivatives/quotes_ETHF0:USTF0_20240829
["timestamp","ask_amount","ask_price","bid_price","bid_amount"]
[1724944752889,4.23544799,2576.3,2576.1,0.38808]
[1724944753090,4.62349799,2576.3,2576.1,0.38808]
[1724944753279,4.23544799,2576.3,2576.2,0.38807]
[1724944754088,0.38801,2576.6,2576.5,0.38802]
[1724944754089,4.21073704,2576.6,2576.5,0.38802]
[1724944754288,3.2078,2576.7,2576.6,0.38801]
[1724944754695,7.41853704,2576.7,2576.6,0.38801]
[1724944755196,0.00582117,2577.3,2577.2,0.38792]
[1724944755587,4.10154503,2577.3,2577.2,0.38792]
[1724944755890,12.44154503,2577.3,2576.8,3.2078]
[1724944756090,4.46,2577.0,2576.6,0.388]
[1724944756288,4.46,2577.0,2576.4,0.4706]
[1724944756494,0.38798,2576.8,2576.6,0.388]
[1724944756797,4.16772661,2576.9,2576.6,0.388]
[1724944756798,4.16772661,2576.7,2576.6,0.388]
[1724944757196,5.35805,2577.0,2576.4,0.4706]
[1724944757197,4.48555189,2576.8,2576.4,0.4706]
[1724944757392,0.38796,2576.9,2576.4,0.4706]
[1724944757393,4.23585785,2576.9,2576.4,0.4706]
[1724944757697,0.38797,2576.9,2576.6,0.388]
[1724944757895,8.36635189,2576.9,2576.7,0.38799]
[1724944758090,8.36635189,2576.9,2576.5,0.38802]
[1724944758091,0.38798,2576.8,2576.5,0.38802]
[1724944758397,4.48950612,2576.7,2576.3,3.6773]
[1724944758797,4.48950612,2576.8,2576.6,0.388]
[1724944759000,5.35805,2577.0,2576.7,0.38798]
[1724944759389,4.82734198,2576.7,2576.4,0.38802]
[1724944759593,3.2078,2576.8,2576.5,0.38802]
[1724944759788,3.2078,2576.8,2576.3,3.2078]
[1724944759789,0.388,2576.7,2576.3,3.2078]
[1724944760003,4.43934198,2576.6,2576.4,0.38802]
[1724944760193,4.12107304,2576.7,2576.4,0.38803]
[1724944760390,0.388,2576.7,2576.4,0.38803]
[1724944760695,4.31756986,2576.7,2576.6,0.38801]
[1724944761200,3.8808,2576.7,2576.6,0.38801]
[1724944761395,4.9701,2577.0,2576.3,3.2078]
[1724944761396,5.35805,2577.0,2576.3,4.1779]
[1724944761601,4.40337857,2576.9,2576.7,0.38798]
[1724944761793,5.35805,2577.0,2576.7,0.38798]
[1724944762188,4.26683162,2576.9,2576.8,0.38798]
[1724944762399,4.26683162,2576.9,2576.7,0.38798]
[1724944762599,4.26683162,2576.9,2576.3,3.2078]
[1724944762794,0.38799,2576.8,2576.3,3.2078]
[1724944763094,4.26683162,2576.9,2576.8,0.38798]
[1724944764994,0.00582117,2577.3,2577.2,0.38788]
[1724944766002,0.00582117,2577.3,2577.0,3.2078]
[1724944766204,0.00582117,2577.3,2577.2,0.38788]
[1724944767605,0.00582117,2577.3,2577.2,5.23758]
[1724944767994,0.00582117,2577.3,2577.2,46.03758]
[1724944768194,0.00582117,2577.3,2577.2,41.18788]
[1724944768397,0.00582117,2577.3,2577.2,4.26788]
[1724944770099,0.00582117,2577.3,2577.2,3.88]
[1724944770301,0.00582117,2577.3,2577.2,0.38788]
[1724944770503,0.00582117,2577.3,2577.2,4.26788]
[1724944770898,0.00582117,2577.3,2577.2,0.38788]
[1724944772703,0.38788,2577.2,2576.8,0.99654965]
[1724944772901,5.47039641,2577.3,2576.8,0.38793]
[1724944773107,0.3879,2577.1,2576.8,0.38793]
[1724944773307,0.96971,2577.2,2576.7,8.28624]
[1724944773611,4.50072641,2577.3,2576.9,0.38792]
[1724944773612,4.25199977,2577.0,2576.9,0.38792]
[1724944773808,4.25199977,2577.0,2576.8,0.38793]
[1724944773809,0.38791,2577.0,2576.8,0.38793]
[1724944774009,0.38793,2576.9,2576.7,3.59574]
[1724944774312,4.65859645,2576.9,2576.7,3.59574]
[1724944774511,0.38794,2576.8,2576.7,3.2078]
[1724944774809,4.65860645,2576.8,2576.7,3.2078]
[1724944775013,0.38794,2576.8,2576.7,3.2078]
[1724944775808,11.3879388,2576.8,2576.2,0.99654965]
[1724944776011,0.38802,2576.3,2576.1,0.38804]
[1724944776205,0.499,2576.7,2576.3,0.388]
[1724944776407,0.38799,2576.5,2576.2,0.38802]
[1724944776602,4.067432,2576.4,2576.3,0.38801]
[1724944776913,0.38799,2576.5,2576.3,0.38801]
[1724944777412,4.08048026,2576.4,2576.3,0.38801]
[1724944777803,4.46845026,2576.6,2576.4,0.38799]
[1724944778003,0.38796,2576.7,2576.5,0.38798]
[1724944778211,0.38797,2576.6,2576.4,0.38799]
[1724944778409,4.28900525,2576.5,2576.4,3.59579]
[1724944778714,4.67695525,2576.7,2576.5,0.38798]
[1724944778905,0.38795,2576.7,2576.5,0.38798]
[1724944779102,4.48875145,2576.6,2576.5,0.38798]
[1724944779508,0.38796,2576.7,2576.5,0.38798]
[1724944779713,9.59215,2577.1,2576.3,1.46913]
[1724944780009,9.59215,2577.1,2576.7,0.38795]
[1724944780010,4.43350537,2576.8,2576.7,0.38795]
[1724944780200,4.43350537,2576.8,2576.6,0.38796]
[1724944780400,0.38793,2576.9,2576.4,4.20434965]
[1724944780401,3.97493492,2576.9,2576.4,4.20434965]
[1724944780608,0.38792,2577.0,2576.7,0.38795]
[1724944780808,0.38792,2577.0,2576.9,0.38792]
[1724944780809,4.43350537,2577.0,2576.9,0.38792]
[1724944781010,3.2078,2577.1,2576.9,0.38792]
[1724944781208,3.2078,2577.1,2577.0,0.38791]
[1724944781615,3.59569,2577.1,2576.9,0.38791]
[1724944781910,3.59569,2577.1,2576.6,0.99654965]
[1724944781911,3.2078,2577.1,2577.0,0.38791]
[1724944782111,0.50292117,2577.3,2576.9,3.2078]
[1724944782408,4.1091602,2577.2,2577.0,0.3879]
[1724944782613,4.1091602,2577.2,2577.1,0.38789]
[1724944783702,4.1091602,2577.2,2576.9,3.2078]
[1724944783907,0.3879,2577.1,2576.9,3.2078]
[1724944784403,4.4970502,2577.2,2576.9,3.59572]
[1724944784607,4.1091602,2577.2,2576.9,3.59572]
[1724944784908,4.1091602,2577.2,2576.9,3.2078]
[1724944785107,5.0788702,2577.2,2576.7,4.191]
[1724944785305,5.0788702,2577.2,2576.6,3.2078]
[1724944785306,0.38795,2576.7,2576.6,3.2078]
[1724944785511,0.38798,2576.5,2576.3,1.3766]
[1724944785708,4.1169547,2576.7,2576.2,0.38802]
[1724944785905,0.96991,2576.7,2576.1,45.00434965]
[1724944786210,4.48589263,2576.6,2576.4,0.38799]
[1724944786512,4.48590263,2576.6,2576.4,0.388]
[1724944786812,0.38798,2576.5,2576.3,0.38801]
[1724944787007,4.09792263,2576.6,2576.2,0.38802]
[1724944787210,4.09792263,2576.6,2576.1,4.20434965]
[1724944787410,0.388,2576.4,2576.1,4.20434965]
[1724944787606,5.06786263,2576.6,2576.2,0.38803]
[1724944787912,0.38802,2576.3,2576.1,4.59238965]
[1724944788302,0.38801,2576.4,2576.1,4.59238965]
[1724944788614,0.38801,2576.4,2576.2,0.38803]
[1724944789004,0.38801,2576.4,2576.1,4.20434965]
[1724944789207,0.38802,2576.3,2576.1,4.20434965]
[1724944789405,0.38803,2576.2,2576.1,3.2078]
[1724944790704,0.38802,2576.3,2576.1,3.2078]
[1724944790913,0.38803,2576.2,2576.1,3.2078]
[1724944791105,4.81718974,2576.2,2576.1,3.2078]
[1724944791609,0.38803,2576.2,2576.1,3.2078]
[1724944792710,0.96995,2576.6,2576.2,0.38802]
[1724944792912,0.388,2576.4,2576.2,0.38802]
[1724944793108,0.96995,2576.6,2576.2,0.38802]
[1724944793109,0.38801,2576.3,2576.2,0.38802]
[1724944793312,0.38801,2576.3,2576.1,3.59583]
[1724944793512,0.38803,2576.2,2576.1,3.2078]
[1724944793908,1.35811,2576.2,2576.0,5.32837082]
[1724944794114,1.35815,2576.1,2576.0,4.33182117]
[1724944796910,1.35815,2576.1,2576.0,4.71988117]
[1724944797321,1.35815,2576.1,2576.0,4.33182117]
[1724944797618,1.35815,2576.1,2576.0,4.71988117]
[1724944799216,0.38804,2576.1,2576.0,4.71988117]
[1724944799619,0.38804,2576.1,2576.0,4.33182117]
[1724944800124,9.34889978,2576.1,2576.0,4.33182117]
[1724944800320,10.83380978,2576.1,2576.0,4.33182117]
[1724944800624,9.86369978,2576.1,2576.0,4.33182117]
[1724944800822,4.49718978,2576.1,2576.0,4.71988117]
[1724944801436,0.4825,2576.2,2576.0,4.71988117]
[1724944801620,0.38804,2576.1,2576.0,4.71988117]
[1724944802221,1.35815,2576.1,2576.0,4.33182117]
[1724944802420,5.7128041,2576.1,2576.0,4.33182117]
[1724944802929,5.7128041,2576.1,2576.0,4.71988117]
[1724944803321,4.7426941,2576.1,2576.0,4.71988117]
[1724944804626,0.38804,2576.2,2576.1,0.38804]
[1724944805033,0.38803,2576.3,2576.2,0.38801]
[1724944806024,1.94022,2576.1,2575.8,3.2078]
[1724944806323,0.38809,2575.8,2575.6,0.38812]
[1724944806526,1.0059,2576.0,2575.7,0.3881]
[1724944806725,0.38809,2575.8,2575.7,0.3881]
[1724944806934,0.38809,2575.9,2575.7,0.3881]
[1724944807125,4.22829049,2576.0,2575.5,3.88582117]
[1724944807332,4.22829049,2576.0,2575.9,0.38807]
[1724944807628,3.21362117,2576.1,2576.0,0.38806]
[1724944807629,0.00582117,2576.1,2576.0,0.38806]
[1724944808035,0.00582117,2576.1,2576.0,4.26966]
[1724944809249,0.00582117,2576.1,2576.0,45.06966]
[1724944810146,0.00582117,2576.1,2576.0,44.6816]
[1724944810342,0.00582117,2576.1,2575.9,0.5128]
[1724944810554,0.00582117,2576.1,2575.9,0.90087]
[1724944810734,0.00582117,2576.1,2576.0,0.38806]
[1724944810933,0.39387117,2576.1,2575.9,0.5128]
[1724944812241,0.38806,2576.0,2575.7,0.4911]
[1724944812550,0.00582117,2576.1,2575.9,0.38806]
[1724944812735,0.38807,2576.0,2575.7,0.9753]
[1724944813145,0.39387117,2576.1,2575.9,0.38807]
[1724944813350,0.39387117,2576.1,2575.8,0.38808]
[1724944813541,0.39387117,2576.1,2575.9,0.38807]
[1724944813752,0.00582117,2576.1,2576.0,0.38806]
[1724944814155,0.00582117,2576.1,2576.0,4.26966]
[1724944816467,0.00582117,2576.1,2576.0,11.23981]
[1724944816760,0.38796,2576.7,2576.5,0.38798]
[1724944817061,4.10847872,2576.6,2576.5,0.38798]
[1724944817266,4.49644872,2576.6,2576.4,0.38799]
[1724944818160,4.49644872,2576.6,2576.3,0.9775]
[1724944818161,0.38798,2576.5,2576.3,1.3655]
[1724944818464,4.10847872,2576.6,2576.3,1.3655]
[1724944818465,0.388,2576.4,2576.3,0.9775]
[1724944818656,0.38801,2576.3,2576.2,7.3318]
[1724944818857,0.38801,2576.3,2576.2,4.124]
[1724944819067,5.46048415,2576.3,2576.2,4.124]
[1724944819264,9.34208415,2576.3,2576.2,4.124]
[1724944819858,5.46048415,2576.3,2576.2,4.124]
[1724944820062,9.34208415,2576.3,2576.2,4.124]
[1724944820464,10.31212415,2576.3,2576.2,4.124]
[1724944820867,5.46048415,2576.3,2576.2,4.124]
[1724944821260,0.38799,2576.5,2576.4,0.388]
[1724944821462,3.2078,2576.6,2576.5,0.38798]
[1724944821763,0.38798,2576.6,2576.5,0.38798]
[1724944821965,0.388,2576.5,2576.4,0.38799]
[1724944822760,0.51852117,2576.8,2576.2,5.09407]
[1724944822967,0.38797,2576.6,2576.5,0.38797]
[1724944823473,4.11805294,2576.7,2576.2,7.3318]
[1724944823672,5.31065945,2576.6,2576.2,4.124]
[1724944823865,0.38801,2576.3,2576.2,4.51202]
[1724944824062,0.38801,2576.4,2576.3,0.38801]
[1724944824263,4.28693733,2576.5,2576.2,4.124]
[1724944824467,0.38801,2576.3,2576.2,4.124]
[1724944824671,1.35805,2576.3,2576.2,4.124]
[1724944824969,9.11429461,2576.3,2576.2,4.124]
[1724944825372,5.23269461,2576.3,2576.2,4.124]
[1724944825967,4.26265461,2576.3,2576.2,4.51203]
[1724944826265,5.23269461,2576.3,2576.2,4.124]
[1724944826572,1.35811,2576.2,2576.1,1.00559847]
[1724944826872,0.38803,2576.2,2576.1,1.39363847]
[1724944827570,0.38803,2576.2,2576.1,0.38804]
[1724944827875,0.38805,2576.1,2576.0,0.38805]
[1724944828170,4.89039907,2576.2,2576.1,0.38803]
[1724944829473,4.89039907,2576.2,2576.1,1.39362847]
[1724944829669,4.89039907,2576.2,2576.1,1.00559847]
[1724944829864,4.89039907,2576.2,2576.1,0.38804]
[1724944830065,0.38804,2576.2,2576.1,0.38804]
[1724944830377,0.38804,2576.2,2576.1,1.39363847]
[1724944830669,0.38804,2576.2,2576.1,1.00559847]
[1724944831262,0.38802,2576.3,2576.1,1.39363847]
[1724944831474,0.38802,2576.3,2576.2,1.00559847]
[1724944831676,0.38803,2576.2,2576.1,1.39363847]
[1724944831873,0.38803,2576.2,2576.1,2.94619358]
[1724944832168,0.38803,2576.2,2576.1,1.00559847]
[1724944832386,1.35811,2576.2,2576.1,1.00559847]
[1724944832569,6.08887661,2576.2,2576.0,1.39365847]
[1724944832773,0.38804,2576.1,2576.0,1.00559847]
[1724944832971,1.35815,2576.1,2576.0,1.00559847]
[1724944833171,5.58201661,2576.1,2576.0,1.00559847]
[1724944834374,6.55212661,2576.1,2576.0,2.94632037]
[1724944834582,1.35821,2576.0,2575.8,1.00559847]
[1724944834776,1.35832,2575.8,2575.7,1.00559847]
[1724944834983,1.35837,2575.7,2575.6,2.30394828]
[1724944835280,1.35837,2575.7,2575.6,2.69206828]
[1724944835479,1.35837,2575.7,2575.6,2.30800172]
[1724944835676,10.54856249,2575.7,2575.6,1.00965191]
[1724944835973,10.54856249,2575.7,2575.5,0.00582117]
[1724944835974,2.32872,2575.6,2575.5,0.00582117]
[1724944836182,6.65902,2575.6,2575.5,0.00582117]
[1724944836773,10.92195454,2575.6,2575.5,0.00582117]
[1724944836968,9.95165454,2575.6,2575.5,0.00582117]
[1724944837169,4.26293454,2575.6,2575.5,0.39395117]
[1724944837367,3.6763,2576.1,2575.6,0.9703]
[1724944837577,3.35,2576.4,2576.3,0.38801]
[1724944837578,0.5118,2576.4,2576.3,0.38801]
[1724944837770,0.38797,2576.6,2576.4,0.388]
[1724944838081,4.5236408,2576.6,2576.3,1.39745851]
[1724944838378,4.5236408,2576.6,2576.2,1.50839771]
[1724944838379,0.38801,2576.3,2576.2,1.00944851]
[1724944838673,1.35811,2576.2,2576.1,4.075]
[1724944838874,0.38807,2575.9,2575.7,2.69695676]
[1724944839070,3.35,2576.0,2575.6,2.30885676]
[1724944839270,4.14985187,2575.8,2575.7,0.3881]
[1724944839489,4.14985187,2575.8,2575.7,1.39754851]
[1724944839773,4.53790187,2576.1,2575.8,0.38808]
[1724944839973,0.38806,2576.0,2575.8,1.00986272]
[1724944840180,4.14985187,2576.0,2575.8,1.00986272]
[1724944840478,0.38806,2576.0,2575.8,1.00986272]
[1724944840681,0.38806,2576.0,2575.7,1.39795272]
[1724944840979,3.8252,2576.2,2575.7,1.00986272]
[1724944841172,0.38806,2576.0,2575.8,1.39794272]
[1724944841478,0.38807,2575.9,2575.8,1.00986272]
[1724944841679,0.38807,2575.9,2575.6,3.59591]
[1724944841680,4.08507141,2575.9,2575.6,2.51826043]
[1724944841871,0.38809,2575.8,2575.6,1.00986272]
[1724944842079,0.3881,2575.7,2575.6,1.00986272]
[1724944842377,4.7352603,2575.7,2575.6,1.00986272]
[1724944842578,1.35842,2575.6,2575.5,0.00582117]
[1724944842781,4.22122,2575.6,2575.5,0.00582117]
[1724944843077,8.5683803,2575.6,2575.5,0.00582117]
[1724944843870,5.2183803,2575.6,2575.5,0.00582117]
[1724944846386,4.3471603,2575.6,2575.5,0.39395117]
[1724944846887,4.56722931,2575.7,2575.5,0.39395117]
[1724944847074,0.38811,2575.7,2575.5,0.39395117]
[1724944847278,3.35,2575.8,2575.5,0.00582117]
[1724944847279,0.38812,2575.6,2575.5,0.00582117]
[1724944847478,4.65998206,2575.6,2575.5,0.00582117]
[1724944847691,0.38812,2575.6,2575.5,0.00582117]
[1724944847988,8.98028206,2575.6,2575.5,0.00582117]
[1724944848684,4.65998206,2575.6,2575.5,0.00582117]
[1724944848879,4.27186206,2575.6,2575.5,0.39395117]
[1724944849086,3.59591,2575.7,2575.6,0.38812]
[1724944849284,3.59591,2575.7,2575.5,0.39395117]
[1724944849285,0.38812,2575.6,2575.5,0.39395117]
[1724944850086,0.38812,2575.6,2575.5,0.00582117]
[1724944851089,0.83966,2576.0,2575.5,9.07621389]
[1724944851389,4.83645445,2575.9,2575.8,0.38809]
[1724944851591,4.83645445,2575.9,2575.8,4.56612]
[1724944851592,4.44837445,2575.9,2575.8,4.56612]
[1724944851787,0.00582117,2576.8,2575.8,61.19202475]
[1724944852097,0.00582117,2576.8,2576.6,0.38796]
[1724944852292,0.39376117,2576.8,2576.6,0.38796]
[1724944852486,0.00582117,2576.8,2576.4,4.9595]
[1724944852690,3.35582117,2576.8,2576.4,4.9595]
[1724944852896,0.38798,2576.5,2576.4,4.076]
[1724944853392,4.82489725,2576.7,2576.5,0.38798]
[1724944853782,4.43693725,2576.7,2576.6,0.38797]
[1724944853983,0.00582117,2576.8,2576.7,0.38795]
[1724944854382,0.00582117,2576.8,2576.7,4.26875]
[1724944854587,0.00582117,2576.8,2576.7,5.13915]
[1724944855094,0.00582117,2576.8,2576.7,6.14794459]
[1724944855297,0.4618,2577.7,2577.3,0.38785]
[1724944855486,0.4618,2577.7,2577.2,3.59567]
[1724944855686,0.4618,2577.7,2577.3,0.38785]
[1724944855687,4.19292162,2577.5,2577.3,0.38785]
[1724944855992,3.8118,2577.7,2577.4,0.38785]
[1724944856185,3.8118,2577.7,2577.1,4.21412746]
[1724944856386,0.38785,2577.4,2577.3,0.00582117]
[1724944856883,15.85906929,2577.4,2577.3,0.00582117]
[1724944857492,0.38794,2576.8,2576.7,4.174]
[1724944857698,15.47121929,2577.4,2576.7,4.174]
[1724944857699,0.38793,2576.9,2576.7,4.174]
[1724944857894,3.35,2577.1,2576.7,4.174]
[1724944858099,4.61730586,2576.8,2576.7,4.174]
[1724944858397,0.38794,2576.8,2576.7,4.174]
[1724944858584,4.47245923,2576.8,2576.7,4.174]
[1724944859483,8.35325923,2576.8,2576.7,4.174]
[1724944859685,0.38797,2576.6,2576.5,0.00582117]
[1724944859895,7.9157,2576.6,2576.5,0.00582117]
[1724944860085,20.57427466,2576.6,2575.8,0.4426]
[1724944860292,0.38811,2575.7,2575.4,3.2078]
[1724944860490,3.35,2576.0,2575.4,3.2078]
[1724944860691,0.3881,2575.8,2575.4,3.59595]
[1724944861089,4.39246898,2575.7,2575.5,0.38813]
[1724944861394,4.38872649,2575.8,2575.5,0.38813]
[1724944861893,0.88052117,2575.9,2575.4,3.2078]
[1724944862192,0.38811,2575.7,2575.4,3.2078]
[1724944862394,4.38872649,2575.8,2575.4,3.2078]
[1724944862592,4.77682649,2575.8,2575.4,3.59595]
[1724944862785,0.3881,2575.7,2575.4,3.59595]
[1724944862989,4.77682649,2575.8,2575.4,3.59595]
[1724944863391,4.38872649,2575.8,2575.4,3.2078]
[1724944863593,0.38813,2575.5,2575.4,3.2078]
[1724944864096,3.2078,2575.8,2575.4,3.2078]
[1724944864491,4.26389429,2575.7,2575.4,3.2078]
[1724944864805,3.2078,2575.8,2575.4,3.2078]
[1724944864988,3.2078,2575.8,2575.5,0.38813]
[1724944865391,3.2078,2575.8,2575.5,3.8824]
[1724944865800,0.39389117,2575.9,2575.6,0.38811]
[1724944866095,0.38809,2575.8,2575.5,0.38813]
[1724944866292,4.66273425,2575.8,2575.5,0.38813]
[1724944866496,4.27464425,2575.8,2575.5,0.38813]
[1724944866694,4.66273425,2575.8,2575.5,0.38813]
[1724944866903,4.27464425,2575.8,2575.5,0.38813]
[1724944867202,4.27464425,2575.8,2575.4,3.59594]
[1724944867501,4.27464425,2575.8,2575.5,0.38813]
[1724944867702,4.27464425,2575.8,2575.4,3.2078]
[1724944867897,0.00582117,2575.9,2575.8,0.38809]
[1724944868401,0.39389117,2575.9,2575.4,3.2078]
[1724944868605,0.00582117,2575.9,2575.8,0.38809]
[1724944868897,0.39389117,2575.9,2575.7,0.38809]
[1724944869103,0.38809,2575.8,2575.6,0.38811]
[1724944869303,4.30881052,2575.8,2575.6,0.38811]
[1724944869500,4.69690052,2575.8,2575.6,0.38811]
[1724944869701,0.38811,2575.7,2575.5,40.8]
[1724944869916,4.30881052,2575.8,2575.4,3.2078]
[1724944870204,0.38813,2575.5,2575.4,3.2078]
[1724944870805,0.4424,2575.6,2575.3,3.88582117]
[1724944871206,0.38815,2575.4,2575.3,3.88582117]
[1724944872211,0.38815,2575.4,2574.6,0.38826]
[1724944872212,14.19080794,2575.4,2574.6,0.38826]
[1724944872503,0.38832,2574.3,2574.1,0.38834]
[1724944872808,0.38832,2574.3,2574.0,0.80665]
[1724944872997,0.3883,2574.4,2574.0,0.4183]
[1724944873201,0.82331117,2574.5,2574.1,3.2078]
[1724944873396,4.94562502,2574.5,2574.2,0.38832]
[1724944873609,0.82331117,2574.5,2574.2,0.38832]
[1724944873807,0.43502117,2574.5,2574.3,0.38831]
[1724944874205,0.00582117,2574.5,2574.4,0.3883]
[1724944874400,0.00582117,2574.5,2574.4,3.5961]
[1724944874599,0.00582117,2574.5,2574.4,7.4801]
[1724944874800,0.00582117,2574.5,2574.4,13.4801]
[1724944875306,0.00582117,2574.5,2574.4,55.25086]
[1724944875501,0.00582117,2574.5,2574.4,45.0723]
[1724944876205,0.00582117,2574.5,2574.4,41.1883]
[1724944877008,0.00582117,2574.5,2574.4,48.2801]
[1724944877400,0.00582117,2574.5,2574.4,41.1883]
[1724944877601,0.00582117,2574.5,2574.4,40.8]
[1724944877810,0.00582117,2574.5,2574.1,7.3828]
[1724944877811,0.00582117,2574.5,2574.1,4.175]
[1724944878007,0.38833,2574.2,2574.1,4.175]
[1724944878212,0.38833,2574.2,2574.0,0.4183]
[1724944878514,3.35,2574.4,2573.8,7.8232]
[1724944878818,0.38835,2574.1,2573.8,8.21158]
[1724944879010,0.38834,2574.2,2573.9,0.38837]
[1724944879604,0.38835,2574.1,2573.8,3.59618]
[1724944879810,0.38835,2574.1,2573.8,3.2078]
[1724944879811,0.38836,2574.0,2573.8,3.2078]
[1724944880012,0.38833,2574.2,2573.8,3.2078]
[1724944880217,8.65861,2574.3,2573.8,3.59618]
[1724944880402,4.4417139,2574.1,2573.8,3.59618]
[1724944880712,8.65861,2574.3,2574.1,0.38834]
[1724944880713,4.0533639,2574.2,2574.1,0.38834]
[1724944881009,3.2078,2574.3,2574.2,0.38833]
[1724944881212,0.80290117,2574.5,2574.2,0.38832]
[1724944881609,4.32716297,2574.4,2574.3,0.38831]
[1724944881917,0.41462117,2574.5,2573.9,1.38573]
[1724944881918,0.00582117,2574.5,2574.4,0.3883]
[1724944882903,3.2078,2575.0,2574.9,0.38822]
[1724944883108,8.6582,2575.4,2574.9,0.38822]
[1724944883317,0.38819,2575.2,2574.9,0.38822]
[1724944883510,4.09213793,2575.1,2575.0,0.38821]
[1724944883706,3.2078,2575.4,2575.0,3.8832]
[1724944883909,0.38818,2575.2,2574.9,0.38822]
[1724944884216,0.38819,2575.2,2574.9,0.39404117]
[1724944884512,0.38819,2575.2,2575.0,0.3882]
[1724944884815,4.4083939,2575.1,2574.9,0.00582117]
[1724944885111,7.6878,2575.4,2574.9,0.00582117]
[1724944885112,3.2078,2575.4,2575.0,0.38821]
[1724944885314,4.4476879,2575.2,2574.9,0.00582117]
[1724944885616,3.2078,2575.4,2574.9,0.00582117]
[1724944885617,4.4476879,2575.3,2574.9,0.00582117]
[1724944885813,0.38821,2575.0,2574.9,0.00582117]
[1724944886214,4.8358979,2575.0,2574.9,0.00582117]
[1724944886607,8.7190979,2575.0,2574.9,0.00582117]
[1724944886914,15.6896279,2575.0,2574.9,0.00582117]
[1724944887120,10.0970279,2575.0,2574.9,0.00582117]
[1724944887617,8.3308879,2575.0,2574.9,0.00582117]
[1724944887808,0.00582117,2575.5,2574.9,17.98762117]
[1724944888009,0.00582117,2575.5,2575.0,0.4033]
[1724944888210,0.38819,2575.2,2575.0,0.4033]
[1724944888411,0.38818,2575.3,2575.0,0.4033]
[1724944888613,4.42535962,2575.1,2575.0,0.4033]
[1724944888821,4.42535962,2575.1,2574.9,0.80484117]
[1724944889010,4.5520332,2575.3,2574.9,0.41662117]
[1724944889213,4.5520332,2575.3,2574.9,0.80484117]
[1724944889523,0.3882,2575.1,2574.9,0.41662117]
[1724944889722,5.05909794,2575.2,2574.9,0.00582117]
[1724944890017,0.4141,2575.2,2574.9,0.00582117]
[1724944890211,4.64500794,2575.1,2574.9,0.00582117]
[1724944890411,0.38821,2575.0,2574.9,0.00582117]
[1724944890612,4.27141,2575.0,2574.9,0.00582117]
[1724944890814,8.96476436,2575.0,2574.9,0.00582117]
[1724944891536,14.96476436,2575.0,2574.9,0.00582117]
[1724944891817,4.48,2574.5,2573.9,0.38837]
[1724944892017,1.2484,2574.4,2574.1,0.38833]
[1724944892218,5.48237735,2574.4,2574.1,0.38833]
[1724944892435,0.38825,2574.8,2574.4,0.38829]
[1724944892717,0.443,2574.8,2574.5,0.38828]
[1724944892915,0.443,2574.8,2574.2,0.4275]
[1724944892916,4.25430155,2574.7,2574.2,0.4275]
[1724944893114,4.25430155,2574.7,2574.6,0.38826]
[1724944893309,4.25430155,2574.7,2574.3,0.408]
[1724944893510,4.25430155,2574.7,2574.3,0.79631]
[1724944893715,4.25430155,2574.7,2574.5,0.38827]
[1724944894415,4.25430155,2574.7,2574.3,0.408]
[1724944894613,4.25430155,2574.7,2574.3,0.7963]
[1724944894817,0.38828,2574.6,2574.2,0.4275]
[1724944895018,7.46210155,2574.7,2574.1,7.78714]
[1724944895220,4.08760968,2574.5,2574.1,7.3988]
[1724944895420,4.36577697,2574.6,2574.1,7.3988]
[1724944895610,4.75404697,2574.6,2574.2,0.38833]
[1724944895813,3.2078,2574.7,2574.3,0.38831]
[1724944895814,3.59606,2574.7,2574.3,0.38831]
[1724944896014,3.59606,2574.7,2574.1,7.3988]
[1724944896015,0.443,2574.8,2574.5,3.2078]
[1724944896218,4.36577697,2574.6,2574.5,3.59608]
[1724944896421,4.36577697,2574.7,2574.6,0.38827]
[1724944896619,0.443,2574.8,2574.6,0.38827]
[1724944896923,4.39562811,2574.7,2574.5,0.38827]
[1724944897126,4.78387811,2574.7,2574.3,0.38831]
[1724944897315,4.78387811,2574.7,2574.2,3.6177]
[1724944897316,7.60342811,2574.7,2574.2,3.6177]
[1724944897525,0.3883,2574.5,2574.2,3.6177]
[1724944898025,4.14301594,2574.4,2574.2,3.6177]
[1724944898220,4.53131594,2574.4,2574.2,3.6177]
[1724944898425,4.14301594,2574.4,2574.2,0.79822]
[1724944898624,4.14301594,2574.4,2574.3,0.38831]
[1724944898820,4.14301594,2574.4,2574.2,0.4099]
[1724944898821,0.83124,2574.8,2574.5,0.38827]
[1724944899129,4.84091203,2574.7,2574.4,0.38829]
[1724944899322,4.45266203,2574.7,2574.2,3.6177]
[1724944899518,4.84092203,2574.7,2574.4,0.38829]
[1724944899717,4.45266203,2574.7,2574.2,3.6177]
[1724944899917,0.3883,2574.4,2574.2,0.4099]
[1724944900115,7.66046203,2574.7,2573.9,0.79066]
[1724944900315,7.66046203,2574.7,2574.0,0.38835]
[1724944900316,4.71689214,2574.3,2574.0,0.38835]
[1724944900515,0.38832,2574.3,2574.0,0.38835]
[1724944900823,4.923,2574.8,2574.4,0.38829]
[1724944901017,4.37467143,2574.2,2573.9,0.4275]
[1724944901223,3.40378489,2574.2,2574.1,4.56701]
[1724944901522,0.443,2574.8,2574.6,0.38826]
[1724944901725,0.443,2574.8,2574.7,0.38825]
[1724944901911,0.38822,2575.0,2574.8,0.38824]
[1724944901912,0.38821,2575.0,2574.8,0.38824]
[1724944902117,4.1404962,2574.8,2574.5,0.4275]
[1724944902317,0.38824,2574.8,2574.5,0.4275]
[1724944902516,0.38824,2574.8,2574.6,0.38826]
[1724944902718,4.5287462,2574.7,2574.5,0.81577]
[1724944903021,0.38825,2574.8,2574.5,0.4275]
[1724944903221,0.38825,2574.8,2574.5,0.38827]
[1724944903425,0.26185758,2574.7,2574.1,3.2078]
[1724944903723,0.38824,2574.8,2574.6,0.38827]
[1724944903926,4.13522631,2574.8,2574.6,0.38827]
[1724944904228,0.38826,2574.7,2574.4,0.38829]
[1724944904412,0.38827,2574.6,2574.3,0.3883]
[1724944904614,0.38828,2574.6,2574.3,0.3883]